BODY,BODY NAME,DATE,TRANSACTION NUMBER, AMOUNT ,SUPPLIER NAME,SUPPLIER ID,EXPENSE AREA,EXPENSE TYPE,EXPENSE CODE
http://statistics.data.gov.uk/id/local-authority/12UE,Huntingdonshire District Council,04/09/2014,154018,780,Community Information Services Ltd,CR478148,Electoral Registration,Advertising/Promoting Services,255
http://statistics.data.gov.uk/id/local-authority/12UE,Huntingdonshire District Council,04/09/2014,569014,607.74,East Cambridgeshire District Council,CR413319,Electoral Registration,Advertising/Promoting Services,255
http://statistics.data.gov.uk/id/local-authority/12UE,Huntingdonshire District Council,04/09/2014,153349,187.2,Uk Point Of Sale Group Ltd,CR478991,One Leisure Huntingdon,Advertising/Promoting Services,255
http://statistics.data.gov.uk/id/local-authority/12UE,Huntingdonshire District Council,04/09/2014,153349,187.2,Uk Point Of Sale Group Ltd,CR478991,One Leisure Ramsey,Advertising/Promoting Services,255
http://statistics.data.gov.uk/id/local-authority/12UE,Huntingdonshire District Council,04/09/2014,153349,186.79,Uk Point Of Sale Group Ltd,CR478991,One Leisure Sawtry,Advertising/Promoting Services,255
http://statistics.data.gov.uk/id/local-authority/12UE,Huntingdonshire District Council,04/09/2014,153633,141.6,Uk Point Of Sale Group Ltd,CR478991,One Leisure Sawtry,Advertising/Promoting Services,255
http://statistics.data.gov.uk/id/local-authority/12UE,Huntingdonshire District Council,04/09/2014,153349,187.2,Uk Point Of Sale Group Ltd,CR478991,One Leisure St Ives,Advertising/Promoting Services,255
http://statistics.data.gov.uk/id/local-authority/12UE,Huntingdonshire District Council,04/09/2014,153349,187.2,Uk Point Of Sale Group Ltd,CR478991,One Leisure St Neots,Advertising/Promoting Services,255
http://statistics.data.gov.uk/id/local-authority/12UE,Huntingdonshire District Council,11/09/2014,154375,1367.43,Jacobs,CR422350,Council Tax,Bailiffs,703
http://statistics.data.gov.uk/id/local-authority/12UE,Huntingdonshire District Council,25/09/2014,154628,821,Jacobs,CR422350,N N D R Administration,Bailiffs,703
http://statistics.data.gov.uk/id/local-authority/12UE,Huntingdonshire District Council,25/09/2014,156183,727.76,Newlyn Plc,CR409114,Council Tax,Bailiffs,703
http://statistics.data.gov.uk/id/local-authority/12UE,Huntingdonshire District Council,18/09/2014,155449,697.05,Newlyn Plc,CR409114,Council Tax,Bailiffs,703
http://statistics.data.gov.uk/id/local-authority/12UE,Huntingdonshire District Council,11/09/2014,155236,676.65,Newlyn Plc,CR409114,Council Tax,Bailiffs,703
http://statistics.data.gov.uk/id/local-authority/12UE,Huntingdonshire District Council,25/09/2014,155860,1071.09,Essex Environmental Supplies Limited,CR40195,Pest Control,Bait/Poisons,553
http://statistics.data.gov.uk/id/local-authority/12UE,Huntingdonshire District Council,18/09/2014,155637,1047.35,Booker Cash And Carry,CR027611,One Leisure St Ives,Bar Provisions,558
http://statistics.data.gov.uk/id/local-authority/12UE,Huntingdonshire District Council,18/09/2014,155186,487.3,Booker Cash And Carry,CR027611,One Leisure St Ives,Bar Provisions,558
http://statistics.data.gov.uk/id/local-authority/12UE,Huntingdonshire District Council,04/09/2014,153617,842.12,J V Trading,CR422174,One Leisure St Ives,Bar Provisions,558
http://statistics.data.gov.uk/id/local-authority/12UE,Huntingdonshire District Council,25/09/2014,154825,447.26,J V Trading,CR422174,One Leisure St Ives,Bar Provisions,558
http://statistics.data.gov.uk/id/local-authority/12UE,Huntingdonshire District Council,18/09/2014,155181,287.57,Snackline Direct Ltd,CR478090,One Leisure Huntingdon,Bar Provisions,558
http://statistics.data.gov.uk/id/local-authority/12UE,Huntingdonshire District Council,04/09/2014,154917,3078,Elephant & Castle Freehouse & Motel,CR401969,Accommodation For Homeless,Bed & Breakfast Payment,818
http://statistics.data.gov.uk/id/local-authority/12UE,Huntingdonshire District Council,18/09/2014,155740,2970,Elephant & Castle Freehouse & Motel,CR401969,Accommodation For Homeless,Bed & Breakfast Payment,818
http://statistics.data.gov.uk/id/local-authority/12UE,Huntingdonshire District Council,11/09/2014,155346,2700,Elephant & Castle Freehouse & Motel,CR401969,Accommodation For Homeless,Bed & Breakfast Payment,818
http://statistics.data.gov.uk/id/local-authority/12UE,Huntingdonshire District Council,25/09/2014,156101,1944,Elephant & Castle Freehouse & Motel,CR401969,Accommodation For Homeless,Bed & Breakfast Payment,818
http://statistics.data.gov.uk/id/local-authority/12UE,Huntingdonshire District Council,18/09/2014,155368,1050,The Station Hotel,CR453752,Accommodation For Homeless,Bed & Breakfast Payment,818
http://statistics.data.gov.uk/id/local-authority/12UE,Huntingdonshire District Council,18/09/2014,155781,949,Lexisnexis,CR000801,Central Services M Us,Books & Publications,250
http://statistics.data.gov.uk/id/local-authority/12UE,Huntingdonshire District Council,25/09/2014,154807,522,Thomson Reuters,CR412314,Central Services M Us,Books & Publications,250
http://statistics.data.gov.uk/id/local-authority/12UE,Huntingdonshire District Council,04/09/2014,153309,1090.38,Beebys Limited,CR415822,Bus Shelters,Building Cleaning Internal,440
http://statistics.data.gov.uk/id/local-authority/12UE,Huntingdonshire District Council,25/09/2014,155253,1356.6,Ecocleen Services Limited,CR406985,E F H And Depots,Building Cleaning Internal,440
http://statistics.data.gov.uk/id/local-authority/12UE,Huntingdonshire District Council,25/09/2014,154619,840.76,Ecocleen Services Limited,CR406985,Off Street Parking,Building Cleaning Internal,440
http://statistics.data.gov.uk/id/local-authority/12UE,Huntingdonshire District Council,25/09/2014,155485,1387.5,Ecocleen Services Limited,CR406985,One Leisure Huntingdon,Building Cleaning Internal,440
http://statistics.data.gov.uk/id/local-authority/12UE,Huntingdonshire District Council,04/09/2014,154646,917.81,Ecocleen Services Limited,CR406985,One Leisure Ramsey,Building Cleaning Internal,440
http://statistics.data.gov.uk/id/local-authority/12UE,Huntingdonshire District Council,25/09/2014,155395,1750.19,Ecocleen Services Limited,CR406985,One Leisure St Ives,Building Cleaning Internal,440
http://statistics.data.gov.uk/id/local-authority/12UE,Huntingdonshire District Council,25/09/2014,155277,1888.42,Ecocleen Services Limited,CR406985,One Leisure St Neots,Building Cleaning Internal,440
http://statistics.data.gov.uk/id/local-authority/12UE,Huntingdonshire District Council,25/09/2014,155250,2146.93,Ecocleen Services Limited,CR406985,Pathfinder House Site,Building Cleaning Internal,440
http://statistics.data.gov.uk/id/local-authority/12UE,Huntingdonshire District Council,25/09/2014,154616,1589.76,Ecocleen Services Limited,CR406985,Pathfinder House Site,Building Cleaning Internal,440
http://statistics.data.gov.uk/id/local-authority/12UE,Huntingdonshire District Council,25/09/2014,155249,1027,Ecocleen Services Limited,CR406985,Public Conveniences,Building Cleaning Internal,440
http://statistics.data.gov.uk/id/local-authority/12UE,Huntingdonshire District Council,25/09/2014,155251,658.1,Ecocleen Services Limited,CR406985,Public Conveniences,Building Cleaning Internal,440
http://statistics.data.gov.uk/id/local-authority/12UE,Huntingdonshire District Council,25/09/2014,155306,3446.22,Cale Briparc Ltd,CR401137,Off Street Parking,Car Park Machines,522
http://statistics.data.gov.uk/id/local-authority/12UE,Huntingdonshire District Council,25/09/2014,155461,334.8,Jade Security Services Ltd,CR422256,Customer Service Centres,Cash Collection,702
http://statistics.data.gov.uk/id/local-authority/12UE,Huntingdonshire District Council,11/09/2014,155418,7435.08,Jade Security Services Ltd,CR422256,Off Street Parking,Cash Collection,702
http://statistics.data.gov.uk/id/local-authority/12UE,Huntingdonshire District Council,25/09/2014,155737,7134.12,Jade Security Services Ltd,CR422256,Off Street Parking,Cash Collection,702
http://statistics.data.gov.uk/id/local-authority/12UE,Huntingdonshire District Council,25/09/2014,155461,234.36,Jade Security Services Ltd,CR422256,One Leisure Huntingdon,Cash Collection,702
http://statistics.data.gov.uk/id/local-authority/12UE,Huntingdonshire District Council,25/09/2014,155461,50.22,Jade Security Services Ltd,CR422256,One Leisure Ramsey,Cash Collection,702
http://statistics.data.gov.uk/id/local-authority/12UE,Huntingdonshire District Council,25/09/2014,155461,50.22,Jade Security Services Ltd,CR422256,One Leisure Sawtry,Cash Collection,702
http://statistics.data.gov.uk/id/local-authority/12UE,Huntingdonshire District Council,25/09/2014,155461,234.36,Jade Security Services Ltd,CR422256,One Leisure St Ives,Cash Collection,702
http://statistics.data.gov.uk/id/local-authority/12UE,Huntingdonshire District Council,25/09/2014,155461,401.76,Jade Security Services Ltd,CR422256,One Leisure St Neots,Cash Collection,702
http://statistics.data.gov.uk/id/local-authority/12UE,Huntingdonshire District Council,18/09/2014,155637,7.14,Booker Cash And Carry,CR027611,One Leisure St Ives,Catering Materials,559
http://statistics.data.gov.uk/id/local-authority/12UE,Huntingdonshire District Council,18/09/2014,155186,16.4,Booker Cash And Carry,CR027611,One Leisure St Ives,Catering Materials,559
http://statistics.data.gov.uk/id/local-authority/12UE,Huntingdonshire District Council,25/09/2014,155312,766,King Bros,CR411339,Countryside,Catering Materials,559
http://statistics.data.gov.uk/id/local-authority/12UE,Huntingdonshire District Council,04/09/2014,153953,692.28,King Bros,CR411339,Countryside,Catering Materials,559
http://statistics.data.gov.uk/id/local-authority/12UE,Huntingdonshire District Council,04/09/2014,154925,1278,Richard Jasny,CR422524,C C T V,Cctv Equipment,526
http://statistics.data.gov.uk/id/local-authority/12UE,Huntingdonshire District Council,18/09/2014,154505,996.28,Brenntag Uk Ltd,CR015017,One Leisure St Neots,Chemicals,551
http://statistics.data.gov.uk/id/local-authority/12UE,Huntingdonshire District Council,25/09/2014,154955,5226,Nomix Enviro,CR002353,Street Cleaning,Chemicals,551
http://statistics.data.gov.uk/id/local-authority/12UE,Huntingdonshire District Council,25/09/2014,156216,5288.16,Computershare Vouchers Ltd,CR412205,Human Resources,Childcare Admin Vouchers,144
http://statistics.data.gov.uk/id/local-authority/12UE,Huntingdonshire District Council,18/09/2014,155194,624,Fitness Warehouse Ltd,CR422295,One Leisure St Ives,Cleaning Materials,443
http://statistics.data.gov.uk/id/local-authority/12UE,Huntingdonshire District Council,25/09/2014,156028,1738.44,Maskearaid Ind Supplies,CR033423,Pathfinder House Site,Cleaning Materials,443
http://statistics.data.gov.uk/id/local-authority/12UE,Huntingdonshire District Council,18/09/2014,155186,39.31,Booker Cash And Carry,CR027611,One Leisure St Ives,Confectionery,572
http://statistics.data.gov.uk/id/local-authority/12UE,Huntingdonshire District Council,18/09/2014,155181,238.23,Snackline Direct Ltd,CR478090,One Leisure Huntingdon,Confectionery,572
http://statistics.data.gov.uk/id/local-authority/12UE,Huntingdonshire District Council,04/09/2014,154974,693.6,Haymarket Media Group,CR479500,Business & Enterprise Support,Conferences,137
http://statistics.data.gov.uk/id/local-authority/12UE,Huntingdonshire District Council,25/09/2014,154951,44756.4,Aecom,CR478307,Local Development Framework,Consultants,711
http://statistics.data.gov.uk/id/local-authority/12UE,Huntingdonshire District Council,11/09/2014,569600,7670,Cambridgeshire County Council,CR006678,Local Development Framework,Consultants,711
http://statistics.data.gov.uk/id/local-authority/12UE,Huntingdonshire District Council,04/09/2014,153822,1680,Kelsall Consultancy Ltd,CR422497,Housing Associations,Consultants,711
http://statistics.data.gov.uk/id/local-authority/12UE,Huntingdonshire District Council,11/09/2014,154126,5496,Oakleaf Technical Services Ltd,CR422395,Energy Efficiency,Consultants,711
http://statistics.data.gov.uk/id/local-authority/12UE,Huntingdonshire District Council,11/09/2014,154910,24097.2,Pricewaterhouse Coopers Llp,CR487210,External Audit,Consultants,711
http://statistics.data.gov.uk/id/local-authority/12UE,Huntingdonshire District Council,11/09/2014,154911,20880,Pricewaterhouse Coopers Llp,CR487210,External Audit,Consultants,711
http://statistics.data.gov.uk/id/local-authority/12UE,Huntingdonshire District Council,25/09/2014,155334,1260,Rsa Environmental Health Limited,CR482415,Human Resources,Consultants,711
http://statistics.data.gov.uk/id/local-authority/12UE,Huntingdonshire District Council,25/09/2014,156195,741.3,Euramka Promotions Ltd,CR001864,Grounds Maintenance (Combined),Diesel,615
http://statistics.data.gov.uk/id/local-authority/12UE,Huntingdonshire District Council,25/09/2014,155267,2793.65,Haven Power Ltd,CR455940,E F H And Depots,Electricity,420
http://statistics.data.gov.uk/id/local-authority/12UE,Huntingdonshire District Council,25/09/2014,155317,4463.3,Haven Power Ltd,CR455940,One Leisure Huntingdon,Electricity,420
http://statistics.data.gov.uk/id/local-authority/12UE,Huntingdonshire District Council,25/09/2014,155292,8958.33,Haven Power Ltd,CR455940,One Leisure St Ives,Electricity,420
http://statistics.data.gov.uk/id/local-authority/12UE,Huntingdonshire District Council,25/09/2014,155316,8569.24,Haven Power Ltd,CR455940,One Leisure St Ives,Electricity,420
http://statistics.data.gov.uk/id/local-authority/12UE,Huntingdonshire District Council,25/09/2014,155322,2044.24,Haven Power Ltd,CR455940,One Leisure St Ives,Electricity,420
http://statistics.data.gov.uk/id/local-authority/12UE,Huntingdonshire District Council,25/09/2014,155270,9741.58,Haven Power Ltd,CR455940,One Leisure St Neots,Electricity,420
http://statistics.data.gov.uk/id/local-authority/12UE,Huntingdonshire District Council,18/09/2014,155616,1034.16,Swalec,CR407130,Housing Services Other,Electricity,420
http://statistics.data.gov.uk/id/local-authority/12UE,Huntingdonshire District Council,04/09/2014,154634,1707.7,Swalec,CR407130,Off Street Parking,Electricity,420
http://statistics.data.gov.uk/id/local-authority/12UE,Huntingdonshire District Council,18/09/2014,155386,540.96,Swalec,CR407130,One Leisure Huntingdon,Electricity,420
http://statistics.data.gov.uk/id/local-authority/12UE,Huntingdonshire District Council,18/09/2014,155617,2669.68,Swalec,CR407130,One Leisure Ramsey,Electricity,420
http://statistics.data.gov.uk/id/local-authority/12UE,Huntingdonshire District Council,18/09/2014,155614,3591.03,Swalec,CR407130,One Leisure Sawtry,Electricity,420
http://statistics.data.gov.uk/id/local-authority/12UE,Huntingdonshire District Council,18/09/2014,155433,555.12,Swalec,CR407130,Parks & Open Spaces,Electricity,420
http://statistics.data.gov.uk/id/local-authority/12UE,Huntingdonshire District Council,11/09/2014,155180,7351.65,Brian Shaw Concerts,CR422269,One Leisure St Ives,Entertainments Inc Cable Tv,744
http://statistics.data.gov.uk/id/local-authority/12UE,Huntingdonshire District Council,04/09/2014,154591,597.6,Sky Business,CR033259,One Leisure St Ives,Entertainments Inc Cable Tv,744
http://statistics.data.gov.uk/id/local-authority/12UE,Huntingdonshire District Council,04/09/2014,154950,1432.8,Access Hire And Hydraulics,CR422526,C C T V,Equipment Maintenance,511
http://statistics.data.gov.uk/id/local-authority/12UE,Huntingdonshire District Council,25/09/2014,155667,3497.42,Canon Uk Ltd,CR409013,Document Centre,Equipment Maintenance,511
http://statistics.data.gov.uk/id/local-authority/12UE,Huntingdonshire District Council,11/09/2014,154397,1646.17,Chubb Fire And Security Ltd,CR478924,One Leisure St Neots,Equipment Maintenance,511
http://statistics.data.gov.uk/id/local-authority/12UE,Huntingdonshire District Council,18/09/2014,154380,688.8,Cirrus Research Plc,CR479189,Eh Health & Safety,Equipment Maintenance,511
http://statistics.data.gov.uk/id/local-authority/12UE,Huntingdonshire District Council,11/09/2014,154853,1250,Lynx Bowling Services,CR455532,One Leisure St Ives,Equipment Maintenance,511
http://statistics.data.gov.uk/id/local-authority/12UE,Huntingdonshire District Council,25/09/2014,154953,2840.83,Quadrant Security Group,CR027775,C C T V,Equipment Maintenance,511
http://statistics.data.gov.uk/id/local-authority/12UE,Huntingdonshire District Council,11/09/2014,154053,174.42,South East Sport Services,CR479901,One Leisure Huntingdon,Equipment Maintenance,511
http://statistics.data.gov.uk/id/local-authority/12UE,Huntingdonshire District Council,11/09/2014,154053,145.86,South East Sport Services,CR479901,One Leisure Ramsey,Equipment Maintenance,511
http://statistics.data.gov.uk/id/local-authority/12UE,Huntingdonshire District Council,11/09/2014,154053,174.42,South East Sport Services,CR479901,One Leisure Sawtry,Equipment Maintenance,511
http://statistics.data.gov.uk/id/local-authority/12UE,Huntingdonshire District Council,11/09/2014,154053,174.42,South East Sport Services,CR479901,One Leisure St Ives,Equipment Maintenance,511
http://statistics.data.gov.uk/id/local-authority/12UE,Huntingdonshire District Council,11/09/2014,154053,117.3,South East Sport Services,CR479901,One Leisure St Neots,Equipment Maintenance,511
http://statistics.data.gov.uk/id/local-authority/12UE,Huntingdonshire District Council,18/09/2014,154502,1495.99,Sps Pumps & Engineering Ltd,CR401392,One Leisure St Neots,Equipment Maintenance,511
http://statistics.data.gov.uk/id/local-authority/12UE,Huntingdonshire District Council,04/09/2014,153691,960,Tecalemit Garage Equipment Co Ltd,CR477683,Fleet Management,Equipment Maintenance,511
http://statistics.data.gov.uk/id/local-authority/12UE,Huntingdonshire District Council,25/09/2014,155650,939.05,Technogym Uk Ltd,CR033037,One Leisure St Neots,Equipment Maintenance,511
http://statistics.data.gov.uk/id/local-authority/12UE,Huntingdonshire District Council,25/09/2014,154928,2685.6,Twofold Consulting,CR453929,Helpdesk,Equipment Maintenance,511
http://statistics.data.gov.uk/id/local-authority/12UE,Huntingdonshire District Council,18/09/2014,154372,7212,First In Service Ltd,CR422285,Environment Equipment Capital,Equipment Purchases,500
http://statistics.data.gov.uk/id/local-authority/12UE,Huntingdonshire District Council,18/09/2014,155682,3618,Technogym Uk Ltd,CR033037,One Leisure Huntingdon,Equipment Purchases,500
http://statistics.data.gov.uk/id/local-authority/12UE,Huntingdonshire District Council,18/09/2014,155682,3618,Technogym Uk Ltd,CR033037,One Leisure Ramsey,Equipment Purchases,500
http://statistics.data.gov.uk/id/local-authority/12UE,Huntingdonshire District Council,18/09/2014,155682,3618,Technogym Uk Ltd,CR033037,One Leisure Sawtry,Equipment Purchases,500
http://statistics.data.gov.uk/id/local-authority/12UE,Huntingdonshire District Council,18/09/2014,155682,3618,Technogym Uk Ltd,CR033037,One Leisure St Neots,Equipment Purchases,500
http://statistics.data.gov.uk/id/local-authority/12UE,Huntingdonshire District Council,18/09/2014,155023,38280,Cambridgeshire County Council,CR006678,Payroll,Financial Services,772
http://statistics.data.gov.uk/id/local-authority/12UE,Huntingdonshire District Council,18/09/2014,155620,1188.04,E-On Energy,CR416430,One Leisure Huntingdon,Gas,421
http://statistics.data.gov.uk/id/local-authority/12UE,Huntingdonshire District Council,18/09/2014,155369,644.9,E-On Energy,CR416430,One Leisure Huntingdon,Gas,421
http://statistics.data.gov.uk/id/local-authority/12UE,Huntingdonshire District Council,18/09/2014,155372,974.99,E-On Energy,CR416430,One Leisure Ramsey,Gas,421
http://statistics.data.gov.uk/id/local-authority/12UE,Huntingdonshire District Council,18/09/2014,155367,1702.85,E-On Energy,CR416430,One Leisure Sawtry,Gas,421
http://statistics.data.gov.uk/id/local-authority/12UE,Huntingdonshire District Council,18/09/2014,155384,5450.16,E-On Energy,CR416430,One Leisure St Ives,Gas,421
http://statistics.data.gov.uk/id/local-authority/12UE,Huntingdonshire District Council,18/09/2014,155361,3160.85,E-On Energy,CR416430,One Leisure St Neots,Gas,421
http://statistics.data.gov.uk/id/local-authority/12UE,Huntingdonshire District Council,18/09/2014,155385,530.14,E-On Energy,CR416430,Pathfinder House Site,Gas,421
http://statistics.data.gov.uk/id/local-authority/12UE,Huntingdonshire District Council,04/09/2014,153617,54.78,J V Trading,CR422174,One Leisure St Ives,Gas Cylinders (Incl. Bars),567
http://statistics.data.gov.uk/id/local-authority/12UE,Huntingdonshire District Council,25/09/2014,154825,55.37,J V Trading,CR422174,One Leisure St Ives,Gas Cylinders (Incl. Bars),567
http://statistics.data.gov.uk/id/local-authority/12UE,Huntingdonshire District Council,04/09/2014,154872,669.12,Amari Plastics Plc,CR455931,One Leisure Huntingdon,Gen Building Mtce - Planned,304
http://statistics.data.gov.uk/id/local-authority/12UE,Huntingdonshire District Council,04/09/2014,152041,3883.5,R G Carter Peterborough,CR401511,Leisure Centres Capital,Gen Building Mtce - Planned,304
http://statistics.data.gov.uk/id/local-authority/12UE,Huntingdonshire District Council,18/09/2014,155624,8280,Roger Hyde Limited,CR409426,Leisure Centres Capital,Gen Building Mtce - Planned,304
http://statistics.data.gov.uk/id/local-authority/12UE,Huntingdonshire District Council,18/09/2014,155625,2754,Roger Hyde Limited,CR409426,Leisure Centres Capital,Gen Building Mtce - Planned,304
http://statistics.data.gov.uk/id/local-authority/12UE,Huntingdonshire District Council,25/09/2014,156037,1320,Roger Hyde Limited,CR409426,Leisure Centres Capital,Gen Building Mtce - Planned,304
http://statistics.data.gov.uk/id/local-authority/12UE,Huntingdonshire District Council,25/09/2014,155669,1140,Roger Hyde Limited,CR409426,Leisure Centres Capital,Gen Building Mtce - Planned,304
http://statistics.data.gov.uk/id/local-authority/12UE,Huntingdonshire District Council,25/09/2014,156088,720,Roger Hyde Limited,CR409426,Leisure Centres Capital,Gen Building Mtce - Planned,304
http://statistics.data.gov.uk/id/local-authority/12UE,Huntingdonshire District Council,18/09/2014,154406,770.27,Roger Wilson Electronics,CR028041,One Leisure Huntingdon,Gen Building Mtce - Planned,304
http://statistics.data.gov.uk/id/local-authority/12UE,Huntingdonshire District Council,04/09/2014,154393,1072.13,Roger Wilson Electronics,CR028041,One Leisure Ramsey,Gen Building Mtce - Planned,304
http://statistics.data.gov.uk/id/local-authority/12UE,Huntingdonshire District Council,04/09/2014,154851,3588,Aragon Homes Ltd,CR132307,Environment Equipment Capital,Gen Building Mtce - Responsive,303
http://statistics.data.gov.uk/id/local-authority/12UE,Huntingdonshire District Council,25/09/2014,154899,1872.8,Burgin Ltd,CR482438,One Leisure Sawtry,Gen Building Mtce - Responsive,303
http://statistics.data.gov.uk/id/local-authority/12UE,Huntingdonshire District Council,18/09/2014,155677,570,Gmb Glazing,CR422527,Pathfinder House Site,Gen Building Mtce - Responsive,303
http://statistics.data.gov.uk/id/local-authority/12UE,Huntingdonshire District Council,25/09/2014,156083,519.24,Heasell Electromechanical Services Ltd,CR422407,One Leisure Sawtry,Gen Building Mtce - Responsive,303
http://statistics.data.gov.uk/id/local-authority/12UE,Huntingdonshire District Council,25/09/2014,156068,714.91,J Breheny Contractors Ltd,CR000314,One Leisure St Neots,Gen Building Mtce - Responsive,303
http://statistics.data.gov.uk/id/local-authority/12UE,Huntingdonshire District Council,18/09/2014,154073,1050,Newgate (Newark) Limited,CR480024,Pathfinder House Site,Gen Building Mtce - Responsive,303
http://statistics.data.gov.uk/id/local-authority/12UE,Huntingdonshire District Council,25/09/2014,154839,2100,Playfords Ltd,CR479055,Industrial Properties,Gen Building Mtce - Responsive,303
http://statistics.data.gov.uk/id/local-authority/12UE,Huntingdonshire District Council,04/09/2014,153572,825,Roofing Contractors (Cambridge) Ltd,CR422450,Industrial Properties,Gen Building Mtce - Responsive,303
http://statistics.data.gov.uk/id/local-authority/12UE,Huntingdonshire District Council,04/09/2014,154484,4068,Woodcroft Joinery & Building Contractors,CR422326,One Leisure St Neots,Gen Building Mtce - Responsive,303
http://statistics.data.gov.uk/id/local-authority/12UE,Huntingdonshire District Council,25/09/2014,155721,850.2,Portakabin Ltd,CR478566,Miscellaneous Grants,Grants (Paid Out),800
http://statistics.data.gov.uk/id/local-authority/12UE,Huntingdonshire District Council,25/09/2014,155722,807.04,Portakabin Ltd,CR478566,Miscellaneous Grants,Grants (Paid Out),800
http://statistics.data.gov.uk/id/local-authority/12UE,Huntingdonshire District Council,04/09/2014,568717,1000,Rural Cambs Citzens Advice Bureau,CR455454,Miscellaneous Grants,Grants (Paid Out),800
http://statistics.data.gov.uk/id/local-authority/12UE,Huntingdonshire District Council,04/09/2014,154012,992.09,Sherriff Amenity Services,CR416316,One Leisure St Ives,Grounds Mtce Contractors,351
http://statistics.data.gov.uk/id/local-authority/12UE,Huntingdonshire District Council,18/09/2014,155214,125,Paxton Lakes Sailing Club,CR406534,Leisure Development,Hire Of Rooms,411
http://statistics.data.gov.uk/id/local-authority/12UE,Huntingdonshire District Council,04/09/2014,154882,5400,Barry Cornelius Associates,CR422523,Financial Services Mus,Hired Staff,100
http://statistics.data.gov.uk/id/local-authority/12UE,Huntingdonshire District Council,25/09/2014,155457,3182.5,Edrm Systems Ltd,CR416278,Helpdesk,Hired Staff,100
http://statistics.data.gov.uk/id/local-authority/12UE,Huntingdonshire District Council,11/09/2014,153998,576,Point Professional Recruitment Ltd,CR422374,Community Services M Us,Hired Staff,100
http://statistics.data.gov.uk/id/local-authority/12UE,Huntingdonshire District Council,04/09/2014,153748,1290,Premier It Recruitment Ltd,CR454029,Helpdesk,Hired Staff,100
http://statistics.data.gov.uk/id/local-authority/12UE,Huntingdonshire District Council,04/09/2014,153749,1290,Premier It Recruitment Ltd,CR454029,Helpdesk,Hired Staff,100
http://statistics.data.gov.uk/id/local-authority/12UE,Huntingdonshire District Council,18/09/2014,154146,1290,Premier It Recruitment Ltd,CR454029,Helpdesk,Hired Staff,100
http://statistics.data.gov.uk/id/local-authority/12UE,Huntingdonshire District Council,18/09/2014,154147,1290,Premier It Recruitment Ltd,CR454029,Helpdesk,Hired Staff,100
http://statistics.data.gov.uk/id/local-authority/12UE,Huntingdonshire District Council,11/09/2014,154149,1290,Premier It Recruitment Ltd,CR454029,Helpdesk,Hired Staff,100
http://statistics.data.gov.uk/id/local-authority/12UE,Huntingdonshire District Council,25/09/2014,154944,1290,Premier It Recruitment Ltd,CR454029,Helpdesk,Hired Staff,100
http://statistics.data.gov.uk/id/local-authority/12UE,Huntingdonshire District Council,18/09/2014,154945,1290,Premier It Recruitment Ltd,CR454029,Helpdesk,Hired Staff,100
http://statistics.data.gov.uk/id/local-authority/12UE,Huntingdonshire District Council,11/09/2014,154150,1032,Premier It Recruitment Ltd,CR454029,Helpdesk,Hired Staff,100
http://statistics.data.gov.uk/id/local-authority/12UE,Huntingdonshire District Council,04/09/2014,154947,774,Premier It Recruitment Ltd,CR454029,Helpdesk,Hired Staff,100
http://statistics.data.gov.uk/id/local-authority/12UE,Huntingdonshire District Council,11/09/2014,154190,690.61,Red Snapper Recruitment Ltd,CR422409,Environmental Health M Us,Hired Staff,100
http://statistics.data.gov.uk/id/local-authority/12UE,Huntingdonshire District Council,25/09/2014,155437,5497.7,Staffline Group,CR416827,Domestic Refuse,Hired Staff,100
http://statistics.data.gov.uk/id/local-authority/12UE,Huntingdonshire District Council,18/09/2014,154964,4959.94,Staffline Group,CR416827,Domestic Refuse,Hired Staff,100
http://statistics.data.gov.uk/id/local-authority/12UE,Huntingdonshire District Council,25/09/2014,155438,4664.76,Staffline Group,CR416827,Domestic Refuse,Hired Staff,100
http://statistics.data.gov.uk/id/local-authority/12UE,Huntingdonshire District Council,04/09/2014,154121,4638.56,Staffline Group,CR416827,Domestic Refuse,Hired Staff,100
http://statistics.data.gov.uk/id/local-authority/12UE,Huntingdonshire District Council,11/09/2014,154963,4342.79,Staffline Group,CR416827,Domestic Refuse,Hired Staff,100
http://statistics.data.gov.uk/id/local-authority/12UE,Huntingdonshire District Council,11/09/2014,154966,4300.13,Staffline Group,CR416827,Domestic Refuse,Hired Staff,100
http://statistics.data.gov.uk/id/local-authority/12UE,Huntingdonshire District Council,18/09/2014,154975,3751.24,Staffline Group,CR416827,Domestic Refuse,Hired Staff,100
http://statistics.data.gov.uk/id/local-authority/12UE,Huntingdonshire District Council,04/09/2014,154119,3657.38,Staffline Group,CR416827,Domestic Refuse,Hired Staff,100
http://statistics.data.gov.uk/id/local-authority/12UE,Huntingdonshire District Council,18/09/2014,154971,679.56,Staffline Group,CR416827,Grounds Maintenance (Combined),Hired Staff,100
http://statistics.data.gov.uk/id/local-authority/12UE,Huntingdonshire District Council,11/09/2014,154969,623.39,Staffline Group,CR416827,Grounds Maintenance (Combined),Hired Staff,100
http://statistics.data.gov.uk/id/local-authority/12UE,Huntingdonshire District Council,25/09/2014,155442,596.71,Staffline Group,CR416827,Grounds Maintenance (Combined),Hired Staff,100
http://statistics.data.gov.uk/id/local-authority/12UE,Huntingdonshire District Council,18/09/2014,154973,3913.34,Staffline Group,CR416827,Recycling,Hired Staff,100
http://statistics.data.gov.uk/id/local-authority/12UE,Huntingdonshire District Council,11/09/2014,154965,3449.77,Staffline Group,CR416827,Recycling,Hired Staff,100
http://statistics.data.gov.uk/id/local-authority/12UE,Huntingdonshire District Council,04/09/2014,154120,3111.34,Staffline Group,CR416827,Recycling,Hired Staff,100
http://statistics.data.gov.uk/id/local-authority/12UE,Huntingdonshire District Council,25/09/2014,155440,2336.17,Staffline Group,CR416827,Recycling,Hired Staff,100
http://statistics.data.gov.uk/id/local-authority/12UE,Huntingdonshire District Council,18/09/2014,154970,2263.46,Staffline Group,CR416827,Street Cleaning,Hired Staff,100
http://statistics.data.gov.uk/id/local-authority/12UE,Huntingdonshire District Council,04/09/2014,154116,2254.97,Staffline Group,CR416827,Street Cleaning,Hired Staff,100
http://statistics.data.gov.uk/id/local-authority/12UE,Huntingdonshire District Council,11/09/2014,154967,2028.55,Staffline Group,CR416827,Street Cleaning,Hired Staff,100
http://statistics.data.gov.uk/id/local-authority/12UE,Huntingdonshire District Council,25/09/2014,155441,1983.72,Staffline Group,CR416827,Street Cleaning,Hired Staff,100
http://statistics.data.gov.uk/id/local-authority/12UE,Huntingdonshire District Council,04/09/2014,154118,1063.21,Staffline Group,CR416827,Street Cleaning,Hired Staff,100
http://statistics.data.gov.uk/id/local-authority/12UE,Huntingdonshire District Council,11/09/2014,154968,959.48,Staffline Group,CR416827,Street Cleaning,Hired Staff,100
http://statistics.data.gov.uk/id/local-authority/12UE,Huntingdonshire District Council,25/09/2014,155439,679.68,Staffline Group,CR416827,Street Cleaning,Hired Staff,100
http://statistics.data.gov.uk/id/local-authority/12UE,Huntingdonshire District Council,04/09/2014,153707,1252.08,Venn Group Recruitment,CR415403,Revenue Services Mus,Hired Staff,100
http://statistics.data.gov.uk/id/local-authority/12UE,Huntingdonshire District Council,25/09/2014,155984,1252.08,Venn Group Recruitment,CR415403,Revenue Services Mus,Hired Staff,100
http://statistics.data.gov.uk/id/local-authority/12UE,Huntingdonshire District Council,18/09/2014,155023,109200,Cambridgeshire County Council,CR006678,Human Resources,Human Resources Services,779
http://statistics.data.gov.uk/id/local-authority/12UE,Huntingdonshire District Council,04/09/2014,153738,2014.56,Virgin Media Business,CR033120,Helpdesk,I T Line Rental,248
http://statistics.data.gov.uk/id/local-authority/12UE,Huntingdonshire District Council,04/09/2014,153738,6.9,Virgin Media Business,CR033120,Member Allowances & Support,I T Line Rental,248
http://statistics.data.gov.uk/id/local-authority/12UE,Huntingdonshire District Council,04/09/2014,153738,9.6,Virgin Media Business,CR033120,One Leisure St Ives,I T Line Rental,248
http://statistics.data.gov.uk/id/local-authority/12UE,Huntingdonshire District Council,25/09/2014,155452,8477.46,Virgin Media Business/Cpsn,CR455148,Helpdesk,I T Line Rental,248
http://statistics.data.gov.uk/id/local-authority/12UE,Huntingdonshire District Council,18/09/2014,154428,512,Grafham Water Centre,CR416894,Leisure Development,Instructors/Tutors,720
http://statistics.data.gov.uk/id/local-authority/12UE,Huntingdonshire District Council,18/09/2014,155215,1000,Paxton Lakes Sailing Club,CR406534,Leisure Development,Instructors/Tutors,720
http://statistics.data.gov.uk/id/local-authority/12UE,Huntingdonshire District Council,18/09/2014,155214,500,Paxton Lakes Sailing Club,CR406534,Leisure Development,Instructors/Tutors,720
http://statistics.data.gov.uk/id/local-authority/12UE,Huntingdonshire District Council,25/09/2014,570255,6000,Cambridgeshire County Council,CR006678,Central Services M Us,Legal Fees,729
http://statistics.data.gov.uk/id/local-authority/12UE,Huntingdonshire District Council,04/09/2014,154805,635.08,Sarfo Solicitors,CR415973,Central Services M Us,Legal Fees,729
http://statistics.data.gov.uk/id/local-authority/12UE,Huntingdonshire District Council,25/09/2014,156085,519.25,Sarfo Solicitors,CR415973,Central Services M Us,Legal Fees,729
http://statistics.data.gov.uk/id/local-authority/12UE,Huntingdonshire District Council,18/09/2014,154585,1772.32,Snr Denton,CR453969,Dc Application Processing,Legal Fees,729
http://statistics.data.gov.uk/id/local-authority/12UE,Huntingdonshire District Council,18/09/2014,155215,178.75,Paxton Lakes Sailing Club,CR406534,Leisure Development,Licences,730
http://statistics.data.gov.uk/id/local-authority/12UE,Huntingdonshire District Council,25/09/2014,154186,2263.33,King Street Housing Society,CR409301,Accommodation For Homeless,Management Charge,733
http://statistics.data.gov.uk/id/local-authority/12UE,Huntingdonshire District Council,04/09/2014,154949,35000,Stonham Home Group,CR455893,Accommodation For Homeless,Management Charge,733
http://statistics.data.gov.uk/id/local-authority/12UE,Huntingdonshire District Council,18/09/2014,155637,139.15,Booker Cash And Carry,CR027611,One Leisure St Ives,Materials,550
http://statistics.data.gov.uk/id/local-authority/12UE,Huntingdonshire District Council,18/09/2014,154505,42,Brenntag Uk Ltd,CR015017,One Leisure St Neots,Materials,550
http://statistics.data.gov.uk/id/local-authority/12UE,Huntingdonshire District Council,04/09/2014,153601,3990.17,Imperial Polythene Products Ltd,CR455671,Domestic Refuse,Materials,550
http://statistics.data.gov.uk/id/local-authority/12UE,Huntingdonshire District Council,04/09/2014,153603,1330.06,Imperial Polythene Products Ltd,CR455671,Domestic Refuse,Materials,550
http://statistics.data.gov.uk/id/local-authority/12UE,Huntingdonshire District Council,04/09/2014,153602,624.31,Imperial Polythene Products Ltd,CR455671,Domestic Refuse,Materials,550
http://statistics.data.gov.uk/id/local-authority/12UE,Huntingdonshire District Council,18/09/2014,155416,638.82,Imperial Polythene Products Ltd,CR455671,Domestic Refuse,Materials,550
http://statistics.data.gov.uk/id/local-authority/12UE,Huntingdonshire District Council,04/09/2014,153601,1506.96,Imperial Polythene Products Ltd,CR455671,Recycling,Materials,550
http://statistics.data.gov.uk/id/local-authority/12UE,Huntingdonshire District Council,04/09/2014,153602,618.94,Imperial Polythene Products Ltd,CR455671,Recycling,Materials,550
http://statistics.data.gov.uk/id/local-authority/12UE,Huntingdonshire District Council,18/09/2014,153649,1342.04,Swimrite Supplies Ltd (Srs Leisure),CR478711,One Leisure Huntingdon,Materials For Resale,570
http://statistics.data.gov.uk/id/local-authority/12UE,Huntingdonshire District Council,11/09/2014,155193,-71.62,Orange Airtime,CR455799,Animal Welfare,Mobile Telephones & Radios,241
http://statistics.data.gov.uk/id/local-authority/12UE,Huntingdonshire District Council,11/09/2014,155193,14.4,Orange Airtime,CR455799,Business Analysis,Mobile Telephones & Radios,241
http://statistics.data.gov.uk/id/local-authority/12UE,Huntingdonshire District Council,11/09/2014,155193,43.3,Orange Airtime,CR455799,C C T V,Mobile Telephones & Radios,241
http://statistics.data.gov.uk/id/local-authority/12UE,Huntingdonshire District Council,11/09/2014,155193,12,Orange Airtime,CR455799,Call Centre,Mobile Telephones & Radios,241
http://statistics.data.gov.uk/id/local-authority/12UE,Huntingdonshire District Council,11/09/2014,155193,29.18,Orange Airtime,CR455799,Central Services M Us,Mobile Telephones & Radios,241
http://statistics.data.gov.uk/id/local-authority/12UE,Huntingdonshire District Council,11/09/2014,155193,31.2,Orange Airtime,CR455799,Community Services M Us,Mobile Telephones & Radios,241
http://statistics.data.gov.uk/id/local-authority/12UE,Huntingdonshire District Council,11/09/2014,155193,62.4,Orange Airtime,CR455799,Corporate Office Mus,Mobile Telephones & Radios,241
http://statistics.data.gov.uk/id/local-authority/12UE,Huntingdonshire District Council,11/09/2014,155193,36.46,Orange Airtime,CR455799,Countryside,Mobile Telephones & Radios,241
http://statistics.data.gov.uk/id/local-authority/12UE,Huntingdonshire District Council,11/09/2014,155193,12,Orange Airtime,CR455799,Customer Service Centres,Mobile Telephones & Radios,241
http://statistics.data.gov.uk/id/local-authority/12UE,Huntingdonshire District Council,11/09/2014,155193,2.4,Orange Airtime,CR455799,Document Centre,Mobile Telephones & Radios,241
http://statistics.data.gov.uk/id/local-authority/12UE,Huntingdonshire District Council,11/09/2014,155193,151.66,Orange Airtime,CR455799,Environmental Health M Us,Mobile Telephones & Radios,241
http://statistics.data.gov.uk/id/local-authority/12UE,Huntingdonshire District Council,11/09/2014,155193,98.94,Orange Airtime,CR455799,Environmental Management,Mobile Telephones & Radios,241
http://statistics.data.gov.uk/id/local-authority/12UE,Huntingdonshire District Council,11/09/2014,155193,12,Orange Airtime,CR455799,Financial Services Mus,Mobile Telephones & Radios,241
http://statistics.data.gov.uk/id/local-authority/12UE,Huntingdonshire District Council,11/09/2014,155193,9.6,Orange Airtime,CR455799,Head Of Imd,Mobile Telephones & Radios,241
http://statistics.data.gov.uk/id/local-authority/12UE,Huntingdonshire District Council,11/09/2014,155193,4.78,Orange Airtime,CR455799,Helpdesk,Mobile Telephones & Radios,241
http://statistics.data.gov.uk/id/local-authority/12UE,Huntingdonshire District Council,11/09/2014,155193,9.6,Orange Airtime,CR455799,Housing  Benefits Admin,Mobile Telephones & Radios,241
http://statistics.data.gov.uk/id/local-authority/12UE,Huntingdonshire District Council,11/09/2014,155193,19.2,Orange Airtime,CR455799,Housing Management Units,Mobile Telephones & Radios,241
http://statistics.data.gov.uk/id/local-authority/12UE,Huntingdonshire District Council,11/09/2014,155193,14.4,Orange Airtime,CR455799,Human Resources,Mobile Telephones & Radios,241
http://statistics.data.gov.uk/id/local-authority/12UE,Huntingdonshire District Council,11/09/2014,155193,9.6,Orange Airtime,CR455799,Information Manager,Mobile Telephones & Radios,241
http://statistics.data.gov.uk/id/local-authority/12UE,Huntingdonshire District Council,11/09/2014,155193,2.4,Orange Airtime,CR455799,Leisure Centres Overall,Mobile Telephones & Radios,241
http://statistics.data.gov.uk/id/local-authority/12UE,Huntingdonshire District Council,11/09/2014,155193,26.4,Orange Airtime,CR455799,Leisure Development,Mobile Telephones & Radios,241
http://statistics.data.gov.uk/id/local-authority/12UE,Huntingdonshire District Council,11/09/2014,155193,4.8,Orange Airtime,CR455799,Licences,Mobile Telephones & Radios,241
http://statistics.data.gov.uk/id/local-authority/12UE,Huntingdonshire District Council,11/09/2014,155193,33.6,Orange Airtime,CR455799,Member Allowances & Support,Mobile Telephones & Radios,241
http://statistics.data.gov.uk/id/local-authority/12UE,Huntingdonshire District Council,11/09/2014,155193,12,Orange Airtime,CR455799,Off Street Parking,Mobile Telephones & Radios,241
http://statistics.data.gov.uk/id/local-authority/12UE,Huntingdonshire District Council,11/09/2014,155193,4.8,Orange Airtime,CR455799,One Leisure Huntingdon,Mobile Telephones & Radios,241
http://statistics.data.gov.uk/id/local-authority/12UE,Huntingdonshire District Council,11/09/2014,155193,0.79,Orange Airtime,CR455799,One Leisure Ramsey,Mobile Telephones & Radios,241
http://statistics.data.gov.uk/id/local-authority/12UE,Huntingdonshire District Council,11/09/2014,155193,4.8,Orange Airtime,CR455799,One Leisure Sawtry,Mobile Telephones & Radios,241
http://statistics.data.gov.uk/id/local-authority/12UE,Huntingdonshire District Council,11/09/2014,155193,13.87,Orange Airtime,CR455799,One Leisure St Ives,Mobile Telephones & Radios,241
http://statistics.data.gov.uk/id/local-authority/12UE,Huntingdonshire District Council,11/09/2014,155193,20,Orange Airtime,CR455799,One Leisure St Neots,Mobile Telephones & Radios,241
http://statistics.data.gov.uk/id/local-authority/12UE,Huntingdonshire District Council,11/09/2014,155193,170.68,Orange Airtime,CR455799,Operations Mgt Units,Mobile Telephones & Radios,241
http://statistics.data.gov.uk/id/local-authority/12UE,Huntingdonshire District Council,11/09/2014,155193,7.2,Orange Airtime,CR455799,Pathfinder House Site,Mobile Telephones & Radios,241
http://statistics.data.gov.uk/id/local-authority/12UE,Huntingdonshire District Council,11/09/2014,155193,110.4,Orange Airtime,CR455799,Planning M U'S,Mobile Telephones & Radios,241
http://statistics.data.gov.uk/id/local-authority/12UE,Huntingdonshire District Council,11/09/2014,155193,76.8,Orange Airtime,CR455799,Revenue Services Mus,Mobile Telephones & Radios,241
http://statistics.data.gov.uk/id/local-authority/12UE,Huntingdonshire District Council,25/09/2014,155805,1921.82,Chipside,CR479533,Off Street Parking,Other I T Hardware,203
http://statistics.data.gov.uk/id/local-authority/12UE,Huntingdonshire District Council,25/09/2014,154928,9960,Twofold Consulting,CR453929,I T Capital,Other I T Hardware,203
http://statistics.data.gov.uk/id/local-authority/12UE,Huntingdonshire District Council,25/09/2014,155627,668.4,Antalis Ltd,CR479468,Document Centre,Paper,562
http://statistics.data.gov.uk/id/local-authority/12UE,Huntingdonshire District Council,25/09/2014,156195,83.16,Euramka Promotions Ltd,CR001864,Grounds Maintenance (Combined),Petrol,614
http://statistics.data.gov.uk/id/local-authority/12UE,Huntingdonshire District Council,11/09/2014,154853,1405.91,Lynx Bowling Services,CR455532,One Leisure St Ives,Plant & Equipment Maintenance,380
http://statistics.data.gov.uk/id/local-authority/12UE,Huntingdonshire District Council,04/09/2014,153302,828,Sps Pumps & Engineering Ltd,CR401392,Watercourses,Plant & Equipment Maintenance,380
http://statistics.data.gov.uk/id/local-authority/12UE,Huntingdonshire District Council,04/09/2014,153987,2570.69,Royal Mail,CR027083,Document Centre,Postage,231
http://statistics.data.gov.uk/id/local-authority/12UE,Huntingdonshire District Council,11/09/2014,154188,747.07,Royal Mail,CR027083,Document Centre,Postage,231
http://statistics.data.gov.uk/id/local-authority/12UE,Huntingdonshire District Council,25/09/2014,155661,804.86,Royal Mail,CR027083,Document Centre,Postage,231
http://statistics.data.gov.uk/id/local-authority/12UE,Huntingdonshire District Council,04/09/2014,153818,38318.9,Royal Mail,CR027083,Electoral Registration,Postage,231
http://statistics.data.gov.uk/id/local-authority/12UE,Huntingdonshire District Council,04/09/2014,153987,14.28,Royal Mail,CR027083,Electoral Registration,Postage,231
http://statistics.data.gov.uk/id/local-authority/12UE,Huntingdonshire District Council,11/09/2014,154188,690.97,Royal Mail,CR027083,Revenue Services Mus,Postage,231
http://statistics.data.gov.uk/id/local-authority/12UE,Huntingdonshire District Council,11/09/2014,155492,397.14,Whistl,CR479965,Chief Executive & Comt,Postage,231
http://statistics.data.gov.uk/id/local-authority/12UE,Huntingdonshire District Council,11/09/2014,155492,866.95,Whistl,CR479965,Document Centre,Postage,231
http://statistics.data.gov.uk/id/local-authority/12UE,Huntingdonshire District Council,25/09/2014,155674,1162.16,Whistl,CR479965,Document Centre,Postage,231
http://statistics.data.gov.uk/id/local-authority/12UE,Huntingdonshire District Council,04/09/2014,153988,1147.55,Whistl,CR479965,Document Centre,Postage,231
http://statistics.data.gov.uk/id/local-authority/12UE,Huntingdonshire District Council,18/09/2014,155491,812.05,Whistl,CR479965,Document Centre,Postage,231
http://statistics.data.gov.uk/id/local-authority/12UE,Huntingdonshire District Council,11/09/2014,155492,44.66,Whistl,CR479965,Domestic Refuse,Postage,231
http://statistics.data.gov.uk/id/local-authority/12UE,Huntingdonshire District Council,25/09/2014,155674,231.56,Whistl,CR479965,Domestic Refuse,Postage,231
http://statistics.data.gov.uk/id/local-authority/12UE,Huntingdonshire District Council,04/09/2014,153988,11.06,Whistl,CR479965,Domestic Refuse,Postage,231
http://statistics.data.gov.uk/id/local-authority/12UE,Huntingdonshire District Council,18/09/2014,155491,11.46,Whistl,CR479965,Domestic Refuse,Postage,231
http://statistics.data.gov.uk/id/local-authority/12UE,Huntingdonshire District Council,25/09/2014,155674,4.74,Whistl,CR479965,Electoral Registration,Postage,231
http://statistics.data.gov.uk/id/local-authority/12UE,Huntingdonshire District Council,04/09/2014,153988,94.05,Whistl,CR479965,Electoral Registration,Postage,231
http://statistics.data.gov.uk/id/local-authority/12UE,Huntingdonshire District Council,18/09/2014,155491,256.06,Whistl,CR479965,Electoral Registration,Postage,231
http://statistics.data.gov.uk/id/local-authority/12UE,Huntingdonshire District Council,11/09/2014,155492,1028.21,Whistl,CR479965,Revenue Services Mus,Postage,231
http://statistics.data.gov.uk/id/local-authority/12UE,Huntingdonshire District Council,25/09/2014,155674,736.59,Whistl,CR479965,Revenue Services Mus,Postage,231
http://statistics.data.gov.uk/id/local-authority/12UE,Huntingdonshire District Council,04/09/2014,153988,728.66,Whistl,CR479965,Revenue Services Mus,Postage,231
http://statistics.data.gov.uk/id/local-authority/12UE,Huntingdonshire District Council,18/09/2014,155491,737.37,Whistl,CR479965,Revenue Services Mus,Postage,231
http://statistics.data.gov.uk/id/local-authority/12UE,Huntingdonshire District Council,25/09/2014,155004,716,Clanpress King'S Lynn Ltd,CR413516,One Leisure Huntingdon,Printing (External),220
http://statistics.data.gov.uk/id/local-authority/12UE,Huntingdonshire District Council,25/09/2014,155005,837,Clanpress King'S Lynn Ltd,CR413516,One Leisure St Neots,Printing (External),220
http://statistics.data.gov.uk/id/local-authority/12UE,Huntingdonshire District Council,18/09/2014,155001,2070,Cfl Estate Services,CR455208,Corporate Office Mus,Property Management,781
http://statistics.data.gov.uk/id/local-authority/12UE,Huntingdonshire District Council,11/09/2014,154857,1409.88,Corporate Trends,CR415966,One Leisure Huntingdon,Protective Clothing & Uniforms,163
http://statistics.data.gov.uk/id/local-authority/12UE,Huntingdonshire District Council,11/09/2014,154857,621.18,Corporate Trends,CR415966,One Leisure Ramsey,Protective Clothing & Uniforms,163
http://statistics.data.gov.uk/id/local-authority/12UE,Huntingdonshire District Council,11/09/2014,154857,316.68,Corporate Trends,CR415966,One Leisure Sawtry,Protective Clothing & Uniforms,163
http://statistics.data.gov.uk/id/local-authority/12UE,Huntingdonshire District Council,11/09/2014,154857,336.84,Corporate Trends,CR415966,One Leisure St Ives,Protective Clothing & Uniforms,163
http://statistics.data.gov.uk/id/local-authority/12UE,Huntingdonshire District Council,11/09/2014,154857,1167.6,Corporate Trends,CR415966,One Leisure St Neots,Protective Clothing & Uniforms,163
http://statistics.data.gov.uk/id/local-authority/12UE,Huntingdonshire District Council,25/09/2014,154489,823.78,Lightning Recruitment,CR028184,Corporate Office Mus,Recruitment - Consultants,123
http://statistics.data.gov.uk/id/local-authority/12UE,Huntingdonshire District Council,11/09/2014,153934,788.17,Lightning Recruitment,CR028184,Corporate Office Mus,Recruitment - Consultants,123
http://statistics.data.gov.uk/id/local-authority/12UE,Huntingdonshire District Council,04/09/2014,153213,762.76,Lightning Recruitment,CR028184,Corporate Office Mus,Recruitment - Consultants,123
http://statistics.data.gov.uk/id/local-authority/12UE,Huntingdonshire District Council,18/09/2014,154074,622,Lightning Recruitment,CR028184,Corporate Office Mus,Recruitment - Consultants,123
http://statistics.data.gov.uk/id/local-authority/12UE,Huntingdonshire District Council,11/09/2014,154108,17120.02,Ssi Schaefer Ltd,CR407190,Recycling Equipment Capital,Recycling Bins,525
http://statistics.data.gov.uk/id/local-authority/12UE,Huntingdonshire District Council,04/09/2014,154107,4780.21,Viridor Waste Management Ltd,CR482408,Recycling,Recycling Collections,747
http://statistics.data.gov.uk/id/local-authority/12UE,Huntingdonshire District Council,18/09/2014,155799,5635,Percipient Studios,CR422541,Development Team,Relocation Expenses,126
http://statistics.data.gov.uk/id/local-authority/12UE,Huntingdonshire District Council,25/09/2014,156179,624,Alexanders,CR415843,Homelessness Management,Removal/Storage,750
http://statistics.data.gov.uk/id/local-authority/12UE,Huntingdonshire District Council,25/09/2014,155801,1761.79,Oastlodge Ltd,CR479114,Off Street Parking,Rent,410
http://statistics.data.gov.uk/id/local-authority/12UE,Huntingdonshire District Council,25/09/2014,154816,918.84,Abel Alarm Company Ltd,CR000201,One Leisure St Ives,Security,450
http://statistics.data.gov.uk/id/local-authority/12UE,Huntingdonshire District Council,25/09/2014,156078,524.53,Anglian Water,CR000071,E F H And Depots,Sewerage,433
http://statistics.data.gov.uk/id/local-authority/12UE,Huntingdonshire District Council,18/09/2014,155619,350.72,Anglian Water,CR000071,One Leisure St Neots,Sewerage,433
http://statistics.data.gov.uk/id/local-authority/12UE,Huntingdonshire District Council,11/09/2014,155008,278.25,Anglian Water,CR000071,Parks & Open Spaces,Sewerage,433
http://statistics.data.gov.uk/id/local-authority/12UE,Huntingdonshire District Council,18/09/2014,155772,2629,J Breheny Contractors Ltd,CR000314,Street Naming,Signs Erecting & Removal,361
http://statistics.data.gov.uk/id/local-authority/12UE,Huntingdonshire District Council,04/09/2014,154609,2190,County Roadways,CR453964,Countryside,Sitework,359
http://statistics.data.gov.uk/id/local-authority/12UE,Huntingdonshire District Council,04/09/2014,154607,912,County Roadways,CR453964,Countryside,Sitework,359
http://statistics.data.gov.uk/id/local-authority/12UE,Huntingdonshire District Council,25/09/2014,154849,720,Marney Hall Consultancy Limited,CR480342,Energy Efficiency,Sitework,359
http://statistics.data.gov.uk/id/local-authority/12UE,Huntingdonshire District Council,24/09/2014,156131,1412.4,Uk Power Networks,CR403938,Energy Efficiency,Sitework,359
http://statistics.data.gov.uk/id/local-authority/12UE,Huntingdonshire District Council,24/09/2014,156132,-1412.4,Uk Power Networks,CR403938,Energy Efficiency,Sitework,359
http://statistics.data.gov.uk/id/local-authority/12UE,Huntingdonshire District Council,25/09/2014,153752,2263.8,Advanced Business Solutions,CR032921,Financial Services,Software,206
http://statistics.data.gov.uk/id/local-authority/12UE,Huntingdonshire District Council,25/09/2014,153751,-2263.8,Advanced Business Solutions,CR032921,Financial Services,Software,206
http://statistics.data.gov.uk/id/local-authority/12UE,Huntingdonshire District Council,25/09/2014,154940,6819.13,Caci Limited,CR409683,Financial Services,Software,206
http://statistics.data.gov.uk/id/local-authority/12UE,Huntingdonshire District Council,25/09/2014,155804,2280,Chipside,CR479533,Off Street Parking,Software,206
http://statistics.data.gov.uk/id/local-authority/12UE,Huntingdonshire District Council,25/09/2014,153777,14166,Gladstone Mrm,CR405717,One Leisure Huntingdon,Software,206
http://statistics.data.gov.uk/id/local-authority/12UE,Huntingdonshire District Council,25/09/2014,153777,7683,Gladstone Mrm,CR405717,One Leisure Ramsey,Software,206
http://statistics.data.gov.uk/id/local-authority/12UE,Huntingdonshire District Council,25/09/2014,153777,7683,Gladstone Mrm,CR405717,One Leisure Sawtry,Software,206
http://statistics.data.gov.uk/id/local-authority/12UE,Huntingdonshire District Council,25/09/2014,153777,15360,Gladstone Mrm,CR405717,One Leisure St Ives,Software,206
http://statistics.data.gov.uk/id/local-authority/12UE,Huntingdonshire District Council,25/09/2014,153777,14166,Gladstone Mrm,CR405717,One Leisure St Neots,Software,206
http://statistics.data.gov.uk/id/local-authority/12UE,Huntingdonshire District Council,25/09/2014,154938,8244,Modern Mindset Ltd,CR482623,Corporate Committees,Software,206
http://statistics.data.gov.uk/id/local-authority/12UE,Huntingdonshire District Council,25/09/2014,156053,2700,Northgate Information Solutions Uk Ltd,CR028925,Revenue Services Mus,Software,206
http://statistics.data.gov.uk/id/local-authority/12UE,Huntingdonshire District Council,25/09/2014,154930,3150,Northgate Information Solutions Uk Ltd,CR028925,Software Capital,Software,206
http://statistics.data.gov.uk/id/local-authority/12UE,Huntingdonshire District Council,04/09/2014,153633,141.6,Uk Point Of Sale Group Ltd,CR478991,One Leisure Huntingdon,Stationery,225
http://statistics.data.gov.uk/id/local-authority/12UE,Huntingdonshire District Council,04/09/2014,153633,141.6,Uk Point Of Sale Group Ltd,CR478991,One Leisure Ramsey,Stationery,225
http://statistics.data.gov.uk/id/local-authority/12UE,Huntingdonshire District Council,04/09/2014,153633,141.6,Uk Point Of Sale Group Ltd,CR478991,One Leisure St Ives,Stationery,225
http://statistics.data.gov.uk/id/local-authority/12UE,Huntingdonshire District Council,04/09/2014,153633,141.6,Uk Point Of Sale Group Ltd,CR478991,One Leisure St Neots,Stationery,225
http://statistics.data.gov.uk/id/local-authority/12UE,Huntingdonshire District Council,25/09/2014,155983,760.2,Bedford Borough Council,CR401424,Building Control Other,Subcontractors,777
http://statistics.data.gov.uk/id/local-authority/12UE,Huntingdonshire District Council,25/09/2014,155393,1788.3,Ecocleen Services Limited,CR406985,One Leisure St Ives,Subcontractors,777
http://statistics.data.gov.uk/id/local-authority/12UE,Huntingdonshire District Council,11/09/2014,569839,1200,North Kesteven District Council,CR480804,Building Control Other,Subcontractors,777
http://statistics.data.gov.uk/id/local-authority/12UE,Huntingdonshire District Council,04/09/2014,153738,0.08,Virgin Media Business,CR033120,Customer Service Centres,Telephone Charges,240
http://statistics.data.gov.uk/id/local-authority/12UE,Huntingdonshire District Council,04/09/2014,153738,1437.02,Virgin Media Business,CR033120,Helpdesk,Telephone Charges,240
http://statistics.data.gov.uk/id/local-authority/12UE,Huntingdonshire District Council,04/09/2014,153738,1.31,Virgin Media Business,CR033120,One Leisure Huntingdon,Telephone Charges,240
http://statistics.data.gov.uk/id/local-authority/12UE,Huntingdonshire District Council,04/09/2014,153738,0.04,Virgin Media Business,CR033120,One Leisure St Ives,Telephone Charges,240
http://statistics.data.gov.uk/id/local-authority/12UE,Huntingdonshire District Council,11/09/2014,155326,865.36,Huntingdon Timber Supplies,CR415663,Countryside,Training - Operational,131
http://statistics.data.gov.uk/id/local-authority/12UE,Huntingdonshire District Council,04/09/2014,155028,726,Aea Training,CR40222,Electoral Registration,Training - Other,136
http://statistics.data.gov.uk/id/local-authority/12UE,Huntingdonshire District Council,18/09/2014,154144,534,Sdi,CR406453,Helpdesk,Training - Other,136
http://statistics.data.gov.uk/id/local-authority/12UE,Huntingdonshire District Council,18/09/2014,155000,672,Cambridgeshire Acre,CR025674,Chief Executive & Comt,Training - Professional,130
http://statistics.data.gov.uk/id/local-authority/12UE,Huntingdonshire District Council,04/09/2014,154020,1003.43,Link Support Services (Uk) Lts,CR482303,Electoral Registration,Training - Professional,130
http://statistics.data.gov.uk/id/local-authority/12UE,Huntingdonshire District Council,04/09/2014,154020,763.43,Link Support Services (Uk) Lts,CR482303,Member Allowances & Support,Training - Professional,130
http://statistics.data.gov.uk/id/local-authority/12UE,Huntingdonshire District Council,04/09/2014,154094,521.71,Cintra Ltd,CR028441,Housing Management Units,Translation Services,766
http://statistics.data.gov.uk/id/local-authority/12UE,Huntingdonshire District Council,25/09/2014,156214,50068.32,Bt Redcare,CR410623,C C T V,Transmission Lines Rental,767
http://statistics.data.gov.uk/id/local-authority/12UE,Huntingdonshire District Council,11/09/2014,155420,660,Gullivers Truck Hire Ltd,CR477663,Street Cleaning,Vehicle Hire,607
http://statistics.data.gov.uk/id/local-authority/12UE,Huntingdonshire District Council,11/09/2014,155421,660,Gullivers Truck Hire Ltd,CR477663,Street Cleaning,Vehicle Hire,607
http://statistics.data.gov.uk/id/local-authority/12UE,Huntingdonshire District Council,11/09/2014,155422,660,Gullivers Truck Hire Ltd,CR477663,Street Cleaning,Vehicle Hire,607
http://statistics.data.gov.uk/id/local-authority/12UE,Huntingdonshire District Council,11/09/2014,155423,660,Gullivers Truck Hire Ltd,CR477663,Street Cleaning,Vehicle Hire,607
http://statistics.data.gov.uk/id/local-authority/12UE,Huntingdonshire District Council,25/09/2014,155445,660,Gullivers Truck Hire Ltd,CR477663,Street Cleaning,Vehicle Hire,607
http://statistics.data.gov.uk/id/local-authority/12UE,Huntingdonshire District Council,11/09/2014,155419,600,Gullivers Truck Hire Ltd,CR477663,Street Cleaning,Vehicle Hire,607
http://statistics.data.gov.uk/id/local-authority/12UE,Huntingdonshire District Council,25/09/2014,155309,527.4,Mo'S Motors,CR406493,Licences,Vehicle Inspection,618
http://statistics.data.gov.uk/id/local-authority/12UE,Huntingdonshire District Council,25/09/2014,155308,1743,T C Harrison Ford,CR405072,Licences,Vehicle Inspection,618
http://statistics.data.gov.uk/id/local-authority/12UE,Huntingdonshire District Council,25/09/2014,155425,705,Dennis Eagle Ltd,CR000200,Vehicles & Plant Capital,Vehicle Licence,609
http://statistics.data.gov.uk/id/local-authority/12UE,Huntingdonshire District Council,25/09/2014,155427,705,Dennis Eagle Ltd,CR000200,Vehicles & Plant Capital,Vehicle Licence,609
http://statistics.data.gov.uk/id/local-authority/12UE,Huntingdonshire District Council,25/09/2014,155430,705,Dennis Eagle Ltd,CR000200,Vehicles & Plant Capital,Vehicle Licence,609
http://statistics.data.gov.uk/id/local-authority/12UE,Huntingdonshire District Council,25/09/2014,155436,705,Dennis Eagle Ltd,CR000200,Vehicles & Plant Capital,Vehicle Licence,609
http://statistics.data.gov.uk/id/local-authority/12UE,Huntingdonshire District Council,04/09/2014,153677,55,Murketts Of Royston,CR455143,Vehicles & Plant Capital,Vehicle Licence,609
http://statistics.data.gov.uk/id/local-authority/12UE,Huntingdonshire District Council,04/09/2014,153678,55,Murketts Of Royston,CR455143,Vehicles & Plant Capital,Vehicle Licence,609
http://statistics.data.gov.uk/id/local-authority/12UE,Huntingdonshire District Council,11/09/2014,154958,516.5,Arthur Ibbett Ltd,CR000430,Countryside,Vehicle Maintenance External,619
http://statistics.data.gov.uk/id/local-authority/12UE,Huntingdonshire District Council,04/09/2014,154551,120,M & N Vehicle Services,CR480661,Domestic Refuse,Vehicle Mot,622
http://statistics.data.gov.uk/id/local-authority/12UE,Huntingdonshire District Council,11/09/2014,154542,2259.85,Dennis Eagle Ltd,CR000200,Recycling,Vehicle Parts & Fittings,625
http://statistics.data.gov.uk/id/local-authority/12UE,Huntingdonshire District Council,04/09/2014,154551,1189.08,M & N Vehicle Services,CR480661,Domestic Refuse,Vehicle Parts & Fittings,625
http://statistics.data.gov.uk/id/local-authority/12UE,Huntingdonshire District Council,25/09/2014,154933,846.52,Marshall Motor Group,CR009641,Street Cleaning,Vehicle Parts & Fittings,625
http://statistics.data.gov.uk/id/local-authority/12UE,Huntingdonshire District Council,04/09/2014,153693,962.54,Terberg Matec Uk Ltd,CR402183,Domestic Refuse,Vehicle Parts & Fittings,625
http://statistics.data.gov.uk/id/local-authority/12UE,Huntingdonshire District Council,25/09/2014,155432,192318,Dennis Eagle Ltd,CR000200,Vehicles & Plant Capital,Vehicles Purchased,600
http://statistics.data.gov.uk/id/local-authority/12UE,Huntingdonshire District Council,25/09/2014,155434,192318,Dennis Eagle Ltd,CR000200,Vehicles & Plant Capital,Vehicles Purchased,600
http://statistics.data.gov.uk/id/local-authority/12UE,Huntingdonshire District Council,25/09/2014,155493,192318,Dennis Eagle Ltd,CR000200,Vehicles & Plant Capital,Vehicles Purchased,600
http://statistics.data.gov.uk/id/local-authority/12UE,Huntingdonshire District Council,04/09/2014,153677,9382.04,Murketts Of Royston,CR455143,Vehicles & Plant Capital,Vehicles Purchased,600
http://statistics.data.gov.uk/id/local-authority/12UE,Huntingdonshire District Council,04/09/2014,153678,9382.04,Murketts Of Royston,CR455143,Vehicles & Plant Capital,Vehicles Purchased,600
http://statistics.data.gov.uk/id/local-authority/12UE,Huntingdonshire District Council,04/09/2014,153628,723.27,Snackline Direct Ltd,CR478090,One Leisure Ramsey,Vending Materials,560
http://statistics.data.gov.uk/id/local-authority/12UE,Huntingdonshire District Council,11/09/2014,569708,2088,Pengelly And Mizen,CR411042,Animal Welfare,Vets,760
http://statistics.data.gov.uk/id/local-authority/12UE,Huntingdonshire District Council,11/09/2014,569828,828,Pengelly And Mizen,CR411042,Animal Welfare,Vets,760
http://statistics.data.gov.uk/id/local-authority/12UE,Huntingdonshire District Council,18/09/2014,154811,669.41,Biffa Waste Services Ltd,CR416469,One Leisure St Ives,Waste Disposal,763
http://statistics.data.gov.uk/id/local-authority/12UE,Huntingdonshire District Council,11/09/2014,154612,1491.5,Cambridgeshire County Council,CR006678,Trade Refuse,Waste Disposal,763
http://statistics.data.gov.uk/id/local-authority/12UE,Huntingdonshire District Council,25/09/2014,156078,483.1,Anglian Water,CR000071,E F H And Depots,Water,432
http://statistics.data.gov.uk/id/local-authority/12UE,Huntingdonshire District Council,25/09/2014,155775,5348.96,Anglian Water,CR000071,Housing Services Other,Water,432
http://statistics.data.gov.uk/id/local-authority/12UE,Huntingdonshire District Council,18/09/2014,155471,1067.31,Anglian Water,CR000071,One Leisure Sawtry,Water,432
http://statistics.data.gov.uk/id/local-authority/12UE,Huntingdonshire District Council,18/09/2014,155619,317.73,Anglian Water,CR000071,One Leisure St Neots,Water,432
http://statistics.data.gov.uk/id/local-authority/12UE,Huntingdonshire District Council,25/09/2014,155855,594.92,Anglian Water,CR000071,One Leisure St Neots,Water,432
http://statistics.data.gov.uk/id/local-authority/12UE,Huntingdonshire District Council,11/09/2014,155008,246.78,Anglian Water,CR000071,Parks & Open Spaces,Water,432
